[Event "XVII Orsha-2019 Open"]
[Site "Orsha"]
[Date "2019.01.23"]
[Round "8.20"]
[White "Khobotova, Olesia"]
[Black "Kolosovskaya, Olga"]
[Result "1-0"]
[ECO "B30"]
[WhiteElo "1978"]
[BlackElo "1855"]
[PlyCount "103"]
[EventDate "2019.01.18"]
[EventType "swiss"]
[EventCountry "BLR"]
[TimeControl "5400+30"]

1. e4 c5 2. Nf3 e6 3. b3 Nc6 4. Bb5 Qc7 5. Bb2 a6 6. Bxc6 Qxc6 7. d3 Nf6 8. O-O Be7 9. Nbd2 b6 10. Ne5 Qc7 11. Qf3 d6 12. Ng4 e5 13. Ne3 g6 14. g4 Be6 15. h3 h5 16. Qg3 hxg4 17. hxg4 O-O-O 18. f3 Rdg8 19. Ng2 Rh7 20. Kf2 Rgh8 21. Ke2 Rh2 22. Rg1 R8h3 23. Qe1 Nxg4 24. Nf1 Bh4 25. Qc3 Rh1 26. Rxh1 Rxh1 27. Nxh4 Rxh4 28. fxg4 Bxg4+ 29. Kd2 Qe7 30. Re1 Qg5+ 31. Ne3 Rh3 32. Qc4 Qf4 33. Qxa6+ Kc7 34. Qa7+ Kc6 35. Qa8+ Kc7 36. Kc3 Rxe3 37. Bc1 Rxe1 38. Bxf4 exf4 39. Qa7+ Kc6 40. Qxf7 f3 41. Qf4 Rg1 42. e5 dxe5 43. Qf6+ Kd5 44. Qf7+ Kc6 45. Qxg6+ Kb7 46. Qe4+ Ka7 47. Qh7+ Ka8 48. Qg8+ Ka7 49. Qf7+ Ka8 50. Kc4 Rg2 51. Kb5 f2 52. Qd5+ 1-0

[Event "XVII Orsha-2019 Open"]
[Site "Orsha"]
[Date "2019.01.23"]
[Round "8.21"]
[White "Dmitriev, Nikolay"]
[Black "Sychou, Dzmitry"]
[Result "1-0"]
[ECO "E60"]
[WhiteElo "1923"]
[BlackElo "1847"]
[PlyCount "171"]
[EventDate "2019.01.18"]
[EventType "swiss"]
[EventCountry "BLR"]
[TimeControl "5400+30"]

1. Nf3 Nf6 2. g3 g6 3. Bg2 Bg7 4. O-O O-O 5. d4 d6 6. b3 c5 7. c4 Nc6 8. Bb2 e6 9. e3 Qc7 10. Nc3 a6 11. Qe2 Rb8 12. Rfd1 b6 13. d5 exd5 14. Nxd5 Nxd5 15. Bxg7 Kxg7 16. Rxd5 Ne7 17. Qb2+ Kg8 18. Rd2 Be6 19. Ng5 h6 20. Ne4 Rfd8 21. Nf6+ Kf8 22. a3 b5 23. Qc3 Nc6 24. Ne4 bxc4 25. Qh8+ Ke7 26. Qf6+ Kf8 27. bxc4 Ne5 28. Qh8+ Ke7 29. Qxh6 Nxc4 30. Qh4+ Kd7 31. Nf6+ Kc8 32. Rc2 Ne5 33. Nd5 Bxd5 34. Bxd5 Qd7 35. Rac1 Nd3 36. Rd1 Ne5 37. Bg2 Qc7 38. Qa4 Rb6 39. Qe4 Nc6 40. Rcd2 Ne5 41. Qa8+ Kd7 42. Qd5 Ke7 43. f4 Ng4 44. Qg5+ Nf6 45. e4 c4 46. e5 Qc5+ 47. Kh1 d5 48. exf6+ Kf8 49. Qh6+ Ke8 50. Qh8+ Qf8 51. Qxf8+ Kxf8 52. Rxd5 Re8 53. Rd8 Rxf6 54. Rxe8+ Kxe8 55. Rc1 Rb6 56. Be4 Rb3 57. a4 c3 58. Kg1 Kd7 59. Kf2 Kd6 60. Ke3 Ra3 61. Bc2 Kc5 62. Kd3 Kb4 63. Rb1+ Ka5 64. g4 f5 65. gxf5 gxf5 66. Rh1 Ra2 67. h4 Rb2 68. h5 Rb8 69. Kxc3 Rh8 70. h6 Rxh6 71. Rf1 Rc6+ 72. Kd2 Rc5 73. Rf3 Kb4 74. Rb3+ Ka5 75. Re3 Rd5+ 76. Kc3 Rc5+ 77. Kb3 Kb6 78. Re5 Rc7 79. Rxf5 Re7 80. Re5 Rf7 81. f5 Rb7 82. Be4 Rc7 83. f6 Rf7 84. Re6+ Ka5 85. Re5+ Kb6 86. a5+ 1-0

[Event "XVII Orsha-2019 Open"]
[Site "Orsha"]
[Date "2019.01.23"]
[Round "8.22"]
[White "Naumovich, Yaroslav"]
[Black "Viikmaa, Karmen"]
[Result "1/2-1/2"]
[ECO "E67"]
[WhiteElo "1915"]
[BlackElo "1706"]
[PlyCount "97"]
[EventDate "2019.01.18"]
[EventType "swiss"]
[EventCountry "BLR"]
[TimeControl "5400+30"]

1. Nf3 Nf6 2. d4 g6 3. g3 Bg7 4. Bg2 d6 5. c4 O-O 6. O-O Nbd7 7. Nc3 e5 8. dxe5 dxe5 9. e4 Re8 10. Qe2 c6 11. b3 Qe7 12. Bb2 a5 13. Rfd1 Nf8 14. h3 N6d7 15. Na4 Ne6 16. Qe3 h6 17. Rd2 Kh7 18. Rad1 Bf6 19. Rd3 Ng5 20. Nxg5+ Bxg5 21. f4 exf4 22. gxf4 Bf6 23. e5 Nf8 24. Qc1 Bg7 25. Ba3 Qh4 26. Nb6 Bf5 27. Nxa8 Rxa8 28. Rf3 Rd8 29. Rxd8 Qxd8 30. Bd6 Qb6+ 31. c5 Qd8 32. Qe1 Ne6 33. b4 Nd4 34. Rf2 Nc2 35. Rxc2 Bxc2 36. b5 Ba4 37. bxc6 Bxc6 38. Bxc6 bxc6 39. e6 fxe6 40. Qxe6 Qf6 41. Qxf6 Bxf6 42. Kg2 Kg8 43. Kf3 Kf7 44. Ke4 Ke6 45. a4 Bc3 46. Bc7 Bb4 47. Bb6 Bc3 48. Bd8 Bb4 49. Bb6 1/2-1/2

[Event "XVII Orsha-2019 Open"]
[Site "Orsha"]
[Date "2019.01.23"]
[Round "8.23"]
[White "Abrazevich, Yauheni"]
[Black "Grigoryan, Aram"]
[Result "1/2-1/2"]
[ECO "C01"]
[WhiteElo "1914"]
[BlackElo "1786"]
[PlyCount "88"]
[EventDate "2019.01.18"]
[EventType "swiss"]
[EventCountry "BLR"]
[TimeControl "5400+30"]

1. e4 e6 2. d4 d5 3. exd5 exd5 4. Bd3 Bd6 5. Nc3 c6 6. Nge2 Qf6 7. Be3 Ne7 8. Qd2 Bf5 9. Bf4 Bxd3 10. Bxd6 Qxd6 11. Qxd3 Nd7 12. Qg3 Nf5 13. Qxd6 Nxd6 14. Ng3 h5 15. h4 g6 16. f3 f6 17. Kf2 Kf7 18. Nce2 a5 19. a4 Nf8 20. Nf4 Ne6 21. Nxe6 Kxe6 22. Ne2 g5 23. Rae1 Kf7 24. hxg5 fxg5 25. Nc1 Nf5 26. c3 Kf6 27. Nd3 h4 28. Re5 Rae8 29. Rhe1 Rxe5 30. Nxe5 Nd6 31. Ng4+ Kf5 32. Re5+ Kf4 33. Re6 Ne4+ 34. fxe4 Kxg4 35. e5 h3 36. gxh3+ Rxh3 37. Kg2 Rg3+ 38. Kf2 Rf3+ 39. Kg2 Rd3 40. Rf6 Re3 41. Kf2 Re4 42. Rf3 Kh5 43. Re3 Kg6 44. Rf3 Rh4 1/2-1/2

[Event "XVII Orsha-2019 Open"]
[Site "Orsha"]
[Date "2019.01.23"]
[Round "8.24"]
[White "Nikolaev, Dmitry"]
[Black "Vainerchuk, Barys"]
[Result "0-1"]
[ECO "A87"]
[WhiteElo "1634"]
[BlackElo "1907"]
[PlyCount "80"]
[EventDate "2019.01.18"]
[EventType "swiss"]
[EventCountry "BLR"]
[TimeControl "5400+30"]

1. Nf3 f5 2. g3 Nf6 3. Bg2 g6 4. b3 Bg7 5. Bb2 O-O 6. c4 d6 7. d4 c6 8. O-O Qe8 9. Qc2 h6 10. Re1 Qf7 11. Nbd2 a5 12. e4 fxe4 13. Nxe4 Bf5 14. Nh4 Nbd7 15. Nxf6+ Qxf6 16. Nxf5 gxf5 17. f4 Rfe8 18. Re2 e6 19. Rae1 Qf7 20. Qd2 d5 21. cxd5 cxd5 22. Rc1 Nf6 23. Rc5 a4 24. b4 Bf8 25. Rc1 a3 26. Ba1 Qd7 27. Qe1 Kf7 28. Rec2 Rec8 29. b5 Rxc2 30. Rxc2 Rc8 31. Rxc8 Qxc8 32. Qc3 Qd8 33. Kf1 Qb6 34. Qb3 Ne8 35. Kf2 Nd6 36. Bf1 Ne4+ 37. Ke3 Qa5 38. Be2 Qd2+ 39. Kf3 Qe1 40. Qd1 Qf2# 0-1

[Event "XVII Orsha-2019 Open"]
[Site "Orsha"]
[Date "2019.01.23"]
[Round "8.25"]
[White "Elkin, Leonid"]
[Black "Loshakov, Dmitry"]
[Result "1-0"]
[ECO "B15"]
[WhiteElo "2085"]
[BlackElo "1852"]
[PlyCount "81"]
[EventDate "2019.01.18"]
[EventType "swiss"]
[EventCountry "BLR"]
[TimeControl "5400+30"]

1. e4 c6 2. d4 d5 3. Nc3 g6 4. Nf3 Bg7 5. h3 dxe4 6. Nxe4 Nf6 7. Nxf6+ exf6 8. Bd3 O-O 9. O-O Be6 10. Bf4 Nd7 11. c4 Nb6 12. Rc1 Qd7 13. Qd2 Rfe8 14. Rfd1 Nc8 15. Bf1 Ne7 16. b3 Rad8 17. a4 g5 18. Bh2 h5 19. Rc3 Nf5 20. d5 cxd5 21. cxd5 Bxd5 22. Bb5 Bxf3 23. Bxd7 Bxd1 24. Rd3 Bc2 25. Bxe8 Rxd3 26. Qxc2 Rd8 27. Bd7 Nd4 28. Qc7 Ne6 29. Qxb7 Nc5 30. Qxa7 Rxd7 31. Qb8+ Kh7 32. g4 Rd1+ 33. Kg2 Rb1 34. Qb5 Bf8 35. b4 Rb2 36. Qe8 Nd3 37. Qxf8 Rxf2+ 38. Kg1 Rf3 39. Qxf7+ Kh8 40. gxh5 Rxh3 41. Qxf6+ 1-0

[Event "XVII Orsha-2019 Open"]
[Site "Orsha"]
[Date "2019.01.23"]
[Round "8.26"]
[White "Vifleemskaia, Svetlana"]
[Black "Klachkou, Platon"]
[Result "1/2-1/2"]
[ECO "E70"]
[WhiteElo "2030"]
[BlackElo "1771"]
[PlyCount "70"]
[EventDate "2019.01.18"]
[EventType "swiss"]
[EventCountry "BLR"]
[TimeControl "5400+30"]

1. d4 Nf6 2. c4 g6 3. Nc3 Bg7 4. e4 d6 5. Nge2 O-O 6. Ng3 e5 7. d5 c6 8. Be2 a5 9. Be3 Ne8 10. O-O f5 11. exf5 gxf5 12. f4 exf4 13. Rxf4 Bh6 14. Rg4+ fxg4 15. Bxh6 Qb6+ 16. Kh1 Rf6 17. Na4 Qc7 18. Be3 c5 19. Nh5 Rf7 20. Bxg4 Ng7 21. Bxc8 Qxc8 22. Nxg7 Rxg7 23. Nb6 Qe8 24. Nxa8 Qxe3 25. Qe1 Re7 26. Qxa5 Nd7 27. Nc7 Nf8 28. Nb5 Qf2 29. Qc3 Ng6 30. Qg3 Qxb2 31. Re1 Qf6 32. h3 Rxe1+ 33. Qxe1 Ne5 34. Qe4 h5 35. Kg1 h4 1/2-1/2

[Event "XVII Orsha-2019 Open"]
[Site "Orsha"]
[Date "2019.01.23"]
[Round "8.27"]
[White "Staravoitava, Hanna"]
[Black "Bogacheva, Anna"]
[Result "1/2-1/2"]
[ECO "B22"]
[WhiteElo "1864"]
[BlackElo "1955"]
[PlyCount "95"]
[EventDate "2019.01.18"]
[EventType "swiss"]
[EventCountry "BLR"]
[TimeControl "5400+30"]

1. e4 c5 2. c3 d5 3. exd5 Qxd5 4. d4 cxd4 5. cxd4 Nc6 6. Nf3 Bg4 7. Be2 e6 8. O-O Nf6 9. Nc3 Qd8 10. Bg5 Be7 11. Qa4 O-O 12. Bxf6 Bxf6 13. d5 Bxf3 14. Bxf3 Nd4 15. Bg4 b5 16. Nxb5 Nxb5 17. Qxb5 Rb8 18. Qa6 exd5 19. Rad1 Rxb2 20. Qxa7 Qd6 21. Qd7 Rd8 22. Qxd6 Rxd6 23. Rfe1 Rd8 24. Rxd5 Rdb8 25. a4 Ra2 26. Bd7 g6 27. Bb5 Kg7 28. g3 Rc8 29. Re2 Rc1+ 30. Kg2 Raa1 31. Be8 Rc7 32. h4 h5 33. Rd7 Rxd7 34. Bxd7 Ra3 35. Rc2 Bc3 36. Kf3 Kf6 37. Ke4 Ke7 38. Bb5 Kd6 39. g4 hxg4 40. Kf4 g3 41. fxg3 Be5+ 42. Kg5 Rxg3+ 43. Kh6 Rg4 44. Rc4 Bd4 45. h5 Rh4 46. Rxd4+ Rxd4 47. hxg6 fxg6 48. Kxg6 1/2-1/2

[Event "XVII Orsha-2019 Open"]
[Site "Orsha"]
[Date "2019.01.23"]
[Round "8.28"]
[White "Petrosyan, Sahak"]
[Black "Bialiauski, Artsiom"]
[Result "1-0"]
[ECO "C78"]
[WhiteElo "1835"]
[BlackElo "1914"]
[PlyCount "125"]
[EventDate "2019.01.18"]
[EventType "swiss"]
[EventCountry "BLR"]
[TimeControl "5400+30"]

1. e4 e5 2. Nf3 Nc6 3. Bb5 a6 4. Ba4 Nf6 5. d3 Bc5 6. O-O b5 7. Bb3 d6 8. c3 Bb6 9. Re1 O-O 10. Bg5 h6 11. Bh4 Qe7 12. Bd5 Bd7 13. d4 Rae8 14. Nbd2 Nb8 15. dxe5 dxe5 16. Bb3 Be6 17. Bg3 Bxb3 18. axb3 Nfd7 19. Qe2 Qe6 20. b4 c5 21. c4 Qc6 22. bxc5 Bxc5 23. cxb5 axb5 24. Nb3 f6 25. Rac1 Qb6 26. Nh4 Rc8 27. Qg4 Rf7 28. Nf5 Kh7 29. Nh4 Kg8 30. Rc2 Rc7 31. Nf5 Kh7 32. Qh5 Qe6 33. Nbd4 exd4 34. Bxc7 d3 35. Rxc5 Nxc5 36. Bxb8 d2 37. Rd1 Nxe4 38. Nd4 Qe8 39. Qxb5 Qxb5 40. Nxb5 Rb7 41. Nd6 Nxd6 42. Bxd6 Rxb2 43. Bf4 Kg6 44. g3 Kh7 45. Rxd2 Rb1+ 46. Kg2 Kg6 47. h4 h5 48. Rd5 Rb2 49. g4 hxg4 50. h5+ Kh7 51. Rd7 Kg8 52. h6 gxh6 53. Bxh6 f5 54. Be3 Rb4 55. Kg3 Kh8 56. Rd5 Rb1 57. Rxf5 Kg7 58. Kxg4 Kg6 59. Rd5 Rg1+ 60. Kf4 Ra1 61. Rd6+ Kh5 62. Rb6 Ra2 63. Kf3 1-0

[Event "XVII Orsha-2019 Open"]
[Site "Orsha"]
[Date "2019.01.23"]
[Round "8.29"]
[White "Gabdrakipov, Kirill"]
[Black "Sokolov, Sergey"]
[Result "1/2-1/2"]
[ECO "D40"]
[WhiteElo "1901"]
[BlackElo "1756"]
[PlyCount "70"]
[EventDate "2019.01.18"]
[EventType "swiss"]
[EventCountry "BLR"]
[TimeControl "5400+30"]

1. e4 c6 2. d4 d5 3. exd5 cxd5 4. c4 Nf6 5. Nc3 e6 6. Nf3 Be7 7. Be2 O-O 8. O-O dxc4 9. Bxc4 Bd7 10. Re1 Re8 11. b3 Nc6 12. Bb2 Rc8 13. d5 exd5 14. Nxd5 Nxd5 15. Bxd5 Bf6 16. Rxe8+ Bxe8 17. Bxf6 Qxf6 18. Bxc6 Bxc6 19. Qd4 Bxf3 20. Qxf6 gxf6 21. gxf3 Rc2 22. a3 Rb2 23. b4 Rb3 24. Kg2 Kg7 25. Kg3 Kg6 26. Ra2 Kf5 27. h3 Kg5 28. Ra1 h5 29. h4+ Kf5 30. Ra2 a6 31. Ra1 Kg6 32. Kf4 b5 33. Ke4 f5+ 34. Kf4 Kf6 35. Ra2 Kg6 1/2-1/2

[Event "XVII Orsha-2019 Open"]
[Site "Orsha"]
[Date "2019.01.23"]
[Round "8.30"]
[White "Volchkov, Ivan"]
[Black "Zeliantsova, Kseniya"]
[Result "0-1"]
[ECO "D85"]
[WhiteElo "1685"]
[BlackElo "1858"]
[PlyCount "62"]
[EventDate "2019.01.18"]
[EventType "swiss"]
[EventCountry "BLR"]
[TimeControl "5400+30"]

1. d4 Nf6 2. c4 g6 3. Nc3 d5 4. cxd5 Nxd5 5. Bd2 Bg7 6. e4 Nxc3 7. Bxc3 c5 8. Bb5+ Bd7 9. Bxd7+ Nxd7 10. Nf3 cxd4 11. Bxd4 Qa5+ 12. Qd2 Qxd2+ 13. Kxd2 e5 14. Bc3 O-O 15. Ke2 Rfe8 16. Rhd1 Nc5 17. Nd2 Rac8 18. f3 Na4 19. Rac1 Bh6 20. Rc2 Nxb2 21. Rxb2 Rxc3 22. Nb1 Rc7 23. Na3 Rec8 24. Rdb1 Bc1 25. Rb3 Bxa3 26. Rxa3 Rc2+ 27. Kf1 Rd8 28. Rxa7 Rdd2 29. a4 Rf2+ 30. Ke1 Rxg2 31. Kd1 Ra2 0-1

[Event "XVII Orsha-2019 Open"]
[Site "Orsha"]
[Date "2019.01.23"]
[Round "8.31"]
[White "Ivanov, Igor"]
[Black "Shaban, Aliaksandra"]
[Result "1/2-1/2"]
[ECO "B19"]
[WhiteElo "2131"]
[BlackElo "1482"]
[PlyCount "87"]
[EventDate "2019.01.18"]
[EventType "swiss"]
[EventCountry "BLR"]
[TimeControl "5400+30"]

1. e4 c6 2. d4 d5 3. Nd2 dxe4 4. Nxe4 Bf5 5. Ng3 Bg6 6. h4 h6 7. h5 Bh7 8. Nf3 e6 9. Bd3 Bxd3 10. Qxd3 Nf6 11. Bd2 Bd6 12. Ne4 Nxe4 13. Qxe4 Nd7 14. O-O-O Nf6 15. Qe2 Qc7 16. Ne5 O-O-O 17. Kb1 Bxe5 18. dxe5 Nd5 19. g4 Qe7 20. Qe4 Qc5 21. f4 Nb6 22. Be3 Qc4 23. Qf3 Nd5 24. Bd2 Nb4 25. Bxb4 Qxb4 26. a3 Qc5 27. Qe4 Rd5 28. c4 Rxd1+ 29. Rxd1 Rd8 30. Rxd8+ Kxd8 31. f5 exf5 32. gxf5 Qg1+ 33. Ka2 Qd1 34. Qh4+ Ke8 35. f6 gxf6 36. exf6 Qe2 37. Qf4 Kd7 38. Qxh6 Qxc4+ 39. Kb1 Qf1+ 40. Kc2 Qf2+ 41. Kc3 Qe1+ 42. Kd4 Qd1+ 43. Ke4 Qg4+ 44. Ke3 1/2-1/2

[Event "XVII Orsha-2019 Open"]
[Site "Orsha"]
[Date "2019.01.23"]
[Round "8.32"]
[White "Poliakova, Varvara"]
[Black "Dolgopyatov, Andrey"]
[Result "1-0"]
[ECO "A06"]
[WhiteElo "1835"]
[BlackElo "1393"]
[PlyCount "45"]
[EventDate "2019.01.18"]
[EventType "swiss"]
[EventCountry "BLR"]
[TimeControl "5400+30"]

1. Nf3 d5 2. e3 Nf6 3. b3 Bg4 4. Be2 e6 5. Bb2 Be7 6. O-O O-O 7. d4 Nbd7 8. c4 c6 9. Nc3 Ne4 10. Nxe4 dxe4 11. Ne5 Bxe2 12. Qxe2 f5 13. Rad1 Nf6 14. f4 exf3 15. gxf3 Qe8 16. Kh1 Qh5 17. Rf2 Kh8 18. Rg2 Rad8 19. Rdg1 Rg8 20. Qe1 Nd7 21. Rg5 Bxg5 22. Rxg5 Qe8 23. Ng6+ 1-0

[Event "XVII Orsha-2019 Open"]
[Site "Orsha"]
[Date "2019.01.23"]
[Round "8.33"]
[White "Sukalina, Alina"]
[Black "Gusenkova, Karina"]
[Result "0-1"]
[ECO "E12"]
[WhiteElo "1546"]
[BlackElo "1642"]
[PlyCount "62"]
[EventDate "2019.01.18"]
[EventType "swiss"]
[EventCountry "BLR"]
[TimeControl "5400+30"]

1. d4 Nf6 2. c4 e6 3. Nf3 b6 4. a3 Bb7 5. Nc3 d5 6. e3 Be7 7. Be2 O-O 8. b4 dxc4 9. Bxc4 c5 10. dxc5 Qxd1+ 11. Kxd1 bxc5 12. b5 Nbd7 13. Bb2 Nb6 14. Bd3 Rfd8 15. Ke2 Nfd5 16. Nxd5 Bxd5 17. e4 Bb3 18. Nd2 c4 19. Nxb3 cxd3+ 20. Kf3 Nc4 21. Bd4 Nxa3 22. Bc5 Bxc5 23. Nxc5 Nxb5 24. Rhd1 d2 25. Ke3 Rac8 26. Nd3 Rc3 27. Rxd2 f5 28. exf5 exf5 29. f4 Na3 30. Rc1 Rxc1 31. Nxc1 Nc4+ 0-1

[Event "XVII Orsha-2019 Open"]
[Site "Orsha"]
[Date "2019.01.23"]
[Round "8.34"]
[White "Slesareva, Miraslava"]
[Black "Poghosyan, Sarmen"]
[Result "1/2-1/2"]
[ECO "D02"]
[WhiteElo "1626"]
[BlackElo "1361"]
[PlyCount "60"]
[EventDate "2019.01.18"]
[EventType "swiss"]
[EventCountry "BLR"]
[TimeControl "5400+30"]

1. d4 d5 2. Bf4 Nf6 3. e3 e6 4. Nf3 c5 5. c3 Nc6 6. Nbd2 Bd6 7. Bg3 O-O 8. Be2 b6 9. Ne5 Bb7 10. f4 Bxe5 11. fxe5 Nd7 12. O-O f6 13. exf6 Nxf6 14. Bh4 Qd7 15. Bxf6 gxf6 16. Bd3 f5 17. Bb5 Qe7 18. Bxc6 Bxc6 19. Nf3 Be8 20. Ne5 Qg5 21. Qf3 Bh5 22. Qf4 Qxf4 23. Rxf4 c4 24. Raf1 Bg6 25. R4f3 Kg7 26. Rg3 Rg8 27. Rf4 Raf8 28. Rh4 Rh8 29. Rh5 Rfg8 30. Rhg5 Kf6 1/2-1/2

[Event "XVII Orsha-2019 Open"]
[Site "Orsha"]
[Date "2019.01.23"]
[Round "8.35"]
[White "Kuleba, Ivan"]
[Black "Simonian, Anna"]
[Result "1-0"]
[ECO "A26"]
[WhiteElo "1617"]
[BlackElo "1289"]
[PlyCount "149"]
[EventDate "2019.01.18"]
[EventType "swiss"]
[EventCountry "BLR"]
[TimeControl "5400+30"]

1. c4 Nf6 2. Nf3 g6 3. g3 Bg7 4. Bg2 O-O 5. O-O d6 6. d3 e5 7. Nc3 Nc6 8. Rb1 a5 9. a3 Bf5 10. Nd2 Nd4 11. b4 axb4 12. axb4 Qd7 13. Bxb7 Bh3 14. Bg2 Rab8 15. e3 Bxg2 16. Kxg2 Ne6 17. Nf3 Ne8 18. e4 f5 19. Ne1 Nd4 20. f3 f4 21. Nc2 Ne6 22. Bd2 Ng5 23. g4 Nf6 24. h3 h5 25. b5 hxg4 26. hxg4 Kf7 27. Nd5 Rh8 28. Nxf6 Bxf6 29. Nb4 Rh3 30. Rh1 Rg3+ 31. Kf2 Rh8 32. Rxh8 Bxh8 33. Nd5 Nh3+ 34. Ke2 Rg2+ 35. Kf1 Rg1+ 36. Ke2 Rxd1 37. Rxd1 Ng5 38. Ra1 Ne6 39. Ra7 Kg8 40. b6 Kh7 41. b7 Nd4+ 42. Kd1 Nc6 43. b8=Q Nxb8 44. Rxc7 Qxc7 45. Nxc7 g5 46. Nb5 Nd7 47. Nxd6 Nc5 48. Ke2 Kg6 49. Bb4 Ne6 50. Nf5 Bf6 51. c5 Nd8 52. Ba5 Nc6 53. Bc7 Bh8 54. Bd6 Bf6 55. Kd2 Kf7 56. Kc3 Ke6 57. Kc4 Kd7 58. Kb5 Nd8 59. Kb6 Nc6 60. Bf8 Bd8+ 61. Kb5 Bf6 62. Bg7 Bd8 63. d4 exd4 64. Nxd4 Na7+ 65. Kc4 Nc8 66. e5 Ke8 67. e6 Ke7 68. Kd5 Bc7 69. Nf5+ Ke8 70. Nd6+ Nxd6 71. cxd6 Bd8 72. d7+ Ke7 73. Ke5 Bc7+ 74. Kf5 Bd8 75. Bf6+ 1-0

[Event "XVII Orsha-2019 Open"]
[Site "Orsha"]
[Date "2019.01.23"]
[Round "8.36"]
[White "Katkov, Mikhail"]
[Black "Vlasov, Andrey"]
[Result "1-0"]
[ECO "D30"]
[WhiteElo "1916"]
[BlackElo "2316"]
[PlyCount "57"]
[EventDate "2019.01.18"]
[EventType "swiss"]
[EventCountry "BLR"]
[TimeControl "5400+30"]

1. d4 d5 2. Nf3 Nf6 3. c4 c6 4. e3 e6 5. Nbd2 Qa5 6. Bd3 Bd6 7. O-O O-O 8. c5 Be7 9. Ne5 Nbd7 10. f4 Qd8 11. b4 Nxe5 12. fxe5 Nd7 13. Rf3 g6 14. Qc2 Kg7 15. a4 f6 16. Rg3 Qe8 17. Nf3 f5 18. Ng5 Bxg5 19. Rxg5 Qe7 20. Rg3 Nb8 21. Qd2 b6 22. e4 dxe4 23. Qh6+ Kg8 24. Be2 Bd7 25. Bg5 Qf7 26. Bf6 Be8 27. Bc4 Bd7 28. h4 b5 29. h5 1-0

[Event "XVII Orsha-2019 Open"]
[Site "Orsha"]
[Date "2019.01.23"]
[Round "8.37"]
[White "Davidov, Alexey"]
[Black "Gonov, Sergey"]
[Result "0-1"]
[ECO "B40"]
[WhiteElo "1688"]
[BlackElo "1905"]
[PlyCount "68"]
[EventDate "2019.01.18"]
[EventType "swiss"]
[EventCountry "BLR"]
[TimeControl "5400+30"]

1. e4 c5 2. Nf3 e6 3. g3 d5 4. exd5 exd5 5. d4 Nf6 6. Bg2 Be7 7. O-O O-O 8. Nc3 Bg4 9. Be3 Nc6 10. h3 Bh5 11. g4 Bg6 12. dxc5 Nb4 13. Rc1 Ne4 14. Nxe4 dxe4 15. Ne5 f5 16. Nxg6 hxg6 17. a3 Nd5 18. Bd4 Nf4 19. Be3 Nxg2 20. Kxg2 f4 21. Bd4 f3+ 22. Kg1 Bg5 23. Be3 Bxe3 24. Qxd8 Bxf2+ 25. Kxf2 Raxd8 26. Ke3 Rfe8 27. Rcd1 Rxd1 28. Rxd1 Kf7 29. Rd7+ Re7 30. Rd6 Re6 31. Rd7+ Ke8 32. Rxb7 Rf6 33. c6 f2 34. c7 Kd7 0-1

[Event "XVII Orsha-2019 Open"]
[Site "Orsha"]
[Date "2019.01.23"]
[Round "8.38"]
[White "Borodulin, Pavel"]
[Black "Dolgopyatov, Evgeniy"]
[Result "1/2-1/2"]
[ECO "D35"]
[WhiteElo "1481"]
[BlackElo "1661"]
[PlyCount "46"]
[EventDate "2019.01.18"]
[EventType "swiss"]
[EventCountry "BLR"]
[TimeControl "5400+30"]

1. d4 Nf6 2. c4 e6 3. Nc3 d5 4. Bg5 Nbd7 5. e3 Be7 6. Nf3 O-O 7. cxd5 exd5 8. Bd3 c6 9. O-O Re8 10. Rc1 Nf8 11. Qb3 Ng6 12. Bxg6 hxg6 13. Rfe1 Nh5 14. Bxe7 Rxe7 15. Ne5 Nf6 16. Na4 Ne4 17. f3 Nd6 18. Nc5 Qb6 19. Qa3 Nb5 20. Qb4 Nd6 21. Qa3 Nb5 22. Qb4 Nd6 23. Qa3 Nb5 1/2-1/2

[Event "XVII Orsha-2019 Open"]
[Site "Orsha"]
[Date "2019.01.23"]
[Round "8.39"]
[White "Kulikov, Egor"]
[Black "Masterova, Daria"]
[Result "1-0"]
[ECO "C55"]
[WhiteElo "1557"]
[BlackElo "1500"]
[PlyCount "87"]
[EventDate "2019.01.18"]
[EventType "swiss"]
[EventCountry "BLR"]
[TimeControl "5400+30"]

1. e4 e5 2. Nf3 Nc6 3. Bc4 Nf6 4. d3 h6 5. Nc3 Bb4 6. Bd2 d6 7. h3 Na5 8. Bb3 Nxb3 9. axb3 Bd7 10. O-O O-O 11. Ne2 Bc5 12. Ng3 Re8 13. Be3 Bxe3 14. fxe3 c6 15. Qe2 d5 16. exd5 cxd5 17. e4 Qb6+ 18. Kh1 d4 19. Nd2 Be6 20. Nc4 Bxc4 21. bxc4 a6 22. b3 Qc7 23. Nf5 Re6 24. Qe1 Nh5 25. Qh4 Nf4 26. g3 Ng6 27. Qg4 Qd8 28. h4 Qf8 29. c5 Ne7 30. Nd6 Rg6 31. Qd7 f6 32. Kh2 Ra7 33. h5 Rg5 34. Qe6+ Kh7 35. g4 Nc6 36. Kh3 Nd8 37. Qd7 Kg8 38. b4 g6 39. Ne8 Nf7 40. Nxf6+ Kg7 41. Nh7 Qg8 42. Nxg5 hxg5 43. h6+ Kf8 44. Qd8# 1-0

[Event "XVII Orsha-2019 Open"]
[Site "Orsha"]
[Date "2019.01.24"]
[Round "9"]
[White "Fedorov, Alexei"]
[Black "Zabotin, Alexander"]
[Result "*"]
[ECO "B20"]
[WhiteElo "2557"]
[BlackElo "2484"]
[Annotator "ChessBase"]
[PlyCount "53"]
[EventDate "2019.01.18"]
[EventType "swiss"]
[EventCountry "BLR"]
[SourceTitle "playchess.com"]
[Source "ChessBase"]
[SourceQuality "1"]
[TimeControl "5400+30"]

1. e4 {[%emt 0:00:00]} c5 {[%emt 0:00:00]} 2. d3 {[%emt 0:00:00]} Nc6 {[%emt 0:02:24]} 3. g3 {[%emt 0:00:14]} g6 {[%emt 0:00:18]} 4. Bg2 {[%emt 0:00:13]} Bg7 {[%emt 0:00:04]} 5. f4 {[%emt 0:00:28]} d6 {[%emt 0:00:30]} 6. Nf3 {[%emt 0:00:31]} Nf6 {[%emt 0:01:26]} 7. O-O {[%emt 0:00:54]} O-O {[%emt 0:00:12]} 8. Nc3 {[%emt 0:01:00]} Nd4 {[%emt 0:03:33]} 9. h3 {[%emt 0:03:02]} Nd7 {[%emt 0:06:27]} 10. g4 {[%emt 0:11:13]} b5 {[%emt 0:01:13]} 11. Nxd4 {[%emt 0:12:08]} Bxd4+ {[%emt 0:00:17]} 12. Kh1 {[%emt 0:00:47]} b4 {[%emt 0:00:07]} 13. Ne2 {[%emt 0:04:23]} Bg7 {[%emt 0:00:23]} 14. a3 {[%emt 0:01:09]} bxa3 {[%emt 0:07:46]} 15. Rxa3 {[%emt 0:00:14]} Bb7 {[%emt 0:00:19]} 16. f5 {[%emt 0:04:55]} e6 {[%emt 0:01:37]} 17. Bf4 {[%emt 0:09:32]} Ne5 {[%emt 0:15:45]} 18. Qd2 {[%emt 0:02:20]} Qe7 {[%emt 0:22:08]} 19. b4 {[%emt 0:14:58]} exf5 {[%emt 0:05:17]} 20. gxf5 {[%emt 0:00:15]} d5 {[%emt 0:00:24]} 21. exd5 {[%emt 0:05:08]} cxb4 {[%emt 0:00:44]} 22. Ra5 {[%emt 0:00:40]} Nd7 {[%emt 0:12:37]} 23. Rb1 {[%emt 0:03:45]} Rfe8 {[%emt 0:00:44]} 24. Rxb4 {[%emt 0:00:41]} Nf6 {[%emt 0:01:13]} 25. Ng3 {[%emt 0:01:28]} Rac8 {[%emt 0:05:20]} 26. c4 {[%emt 0:01:04]} a6 {[%emt 0:00:02]} 27. Rb1 {[%emt 0:04:03]} *

[Event "XVII Orsha-2019 Open"]
[Site "Orsha"]
[Date "2019.01.24"]
[Round "9"]
[White "Krylov, Ivan"]
[Black "Grishchenko, Sergey"]
[Result "*"]
[ECO "D34"]
[WhiteElo "2441"]
[BlackElo "2409"]
[Annotator "ChessBase"]
[PlyCount "50"]
[EventDate "2019.01.18"]
[EventType "swiss"]
[EventCountry "BLR"]
[SourceTitle "playchess.com"]
[Source "ChessBase"]
[SourceQuality "1"]
[TimeControl "5400+30"]

1. d4 {[%emt 0:00:06]} d5 {[%emt 0:00:15]} 2. c4 {[%emt 0:00:11]} e6 {[%emt 0:00:08]} 3. Nf3 {[%emt 0:00:27]} c5 {[%emt 0:00:18]} 4. cxd5 {[%emt 0:00:31]} exd5 {[%emt 0:00:04]} 5. g3 {[%emt 0:00:31]} Nc6 {[%emt 0:00:34]} 6. Bg2 {[%emt 0:00:33]} Nf6 {[%emt 0:01:35]} 7. O-O {[%emt 0:00:25]} Be7 {[%emt 0:00:06]} 8. Nc3 {[%emt 0:00:10]} O-O {[%emt 0:00:05]} 9. b3 {[%emt 0:01:46]} Ne4 {[%emt 0:00:26]} 10. Bb2 {[%emt 0:00:10]} Bf6 {[%emt 0:00:17]} 11. Na4 {[%emt 0:00:20]} cxd4 {[%emt 0:21:31]} 12. Nxd4 {[%emt 0:02:26]} Bd7 {[%emt 0:01:10]} 13. Rc1 {[%emt 0:05:05]} Rc8 {[%emt 0:02:12]} 14. Nc5 {[%emt 0:12:59]} Re8 {[%emt 0:33:47]} 15. e3 {[%emt 0:13:43]} Nxd4 {[%emt 0:11:36]} 16. Bxd4 {[%emt 0:07:27]} Bb5 {[%emt 0:00:59]} 17. Re1 {[%emt 0:10:12]} Nxc5 {[%emt 0:11:33]} 18. Bxc5 {[%emt 0:05:42]} b6 {[%emt 0:03:19]} 19. Bd4 {[%emt 0:02:22]} Rxc1 {[%emt 0:00:06]} 20. Qxc1 {[%emt 0:00:05]} Bxd4 {[%emt 0:00:27]} 21. exd4 {[%emt 0:00:05]} Rxe1+ {[%emt 0:00:17]} 22. Qxe1 {[%emt 0:00:05]} Qd6 {[%emt 0:00:14]} 23. h4 {[%emt 0:07:42]} f6 {[%emt 0:03:00]} 24. Qc3 {[%emt 0:01:33]} Bd7 {[%emt 0:00:11]} 25. Bf3 {[%emt 0:00:56]} Bf5 {[%emt 0:01:27]} *